[Event "Titled Tuesday Blitz May 30 Early 2023"]
[White "ATM622"]
[Black "Flis, Pawel"]
[BlackFideId "1112864"]
[WhiteElo "2539"]
[BlackElo "1822"]
[Result "1-0"]
[Round "01"]
[TimeControl "180+2"]
[Date "2023.05.30"]
[WhiteClock "0:02:16"]
[BlackClock "0:01:12"]

1. d4 {[%clk 0:03:00]}  c5 {[%clk 0:02:57]} 2. d5 {[%clk 0:03:01]}  Nf6 {[%clk 0:02:57]} 3. c4 {[%clk 0:03:01]}  b5 {[%clk 0:02:56]} 4. cxb5 {[%clk 0:03:01]}  a6 {[%clk 0:02:57]} 5. e3 {[%clk 0:03:01]}  axb5 {[%clk 0:02:52]} 6. Bxb5 {[%clk 0:03:01]}  Qa5+ {[%clk 0:02:52]} 7. Nc3 {[%clk 0:03:00]}  Bb7 {[%clk 0:02:52]} 8. Bd2 {[%clk 0:02:58]}  Qb6 {[%clk 0:02:52]} 9. a4 {[%clk 0:02:56]}  Nxd5 {[%clk 0:02:45]} 10. Nf3 {[%clk 0:02:56]}  e6 {[%clk 0:02:42]} 11. a5 {[%clk 0:02:55]}  Qc7 {[%clk 0:02:41]} 12. Nxd5 {[%clk 0:02:53]}  Bxd5 {[%clk 0:02:40]} 13. O-O {[%clk 0:02:52]}  Qb7 {[%clk 0:02:36]} 14. Qe2 {[%clk 0:02:46]}  Bxf3 {[%clk 0:02:34]} 15. Qxf3 {[%clk 0:02:47]}  Qxf3 {[%clk 0:02:27]} 16. gxf3 {[%clk 0:02:48]}  Be7 {[%clk 0:02:26]} 17. Bc3 {[%clk 0:02:47]}  O-O {[%clk 0:02:26]} 18. a6 {[%clk 0:02:45]}  Nc6 {[%clk 0:02:18]} 19. Rfd1 {[%clk 0:02:43]}  Rfd8 {[%clk 0:02:07]} 20. Rxd7 {[%clk 0:02:40]}  Rxd7 {[%clk 0:02:04]} 21. Bxc6 {[%clk 0:02:40]}  Rda7 {[%clk 0:02:04]} 22. Bxa8 {[%clk 0:02:38]}  Rxa8 {[%clk 0:02:05]} 23. a7 {[%clk 0:02:37]}  Bf6 {[%clk 0:01:57]} 24. Bxf6 {[%clk 0:02:35]}  gxf6 {[%clk 0:01:58]} 25. Kf1 {[%clk 0:02:33]}  Kf8 {[%clk 0:01:58]} 26. Ke2 {[%clk 0:02:32]}  Ke7 {[%clk 0:01:59]} 27. Kd3 {[%clk 0:02:31]}  Kd6 {[%clk 0:01:59]} 28. Kc4 {[%clk 0:02:30]}  Kc6 {[%clk 0:01:59]} 29. Ra6+ {[%clk 0:02:28]}  Kb7 {[%clk 0:01:58]} 30. Kb5 {[%clk 0:02:25]}  h5 {[%clk 0:01:47]} 31. Rb6+ {[%clk 0:02:23]}  Kc7 {[%clk 0:01:42]} 32. Ka6 {[%clk 0:02:22]}  c4 {[%clk 0:01:37]} 33. Rb7+ {[%clk 0:02:22]}  Kc8 {[%clk 0:01:37]} 34. Rxf7 {[%clk 0:02:22]}  c3 {[%clk 0:01:26]} 35. Rf8+ {[%clk 0:02:21]}  Kd7 {[%clk 0:01:26]} 36. Rxa8 {[%clk 0:02:18]}  c2 {[%clk 0:01:26]} 37. Rc8 {[%clk 0:02:18]}  Kxc8 {[%clk 0:01:25]} 38. a8=Q+ {[%clk 0:02:18]}  Kd7 {[%clk 0:01:26]} 39. Qb7+ {[%clk 0:02:16]}  Kd8 {[%clk 0:01:25]} 40. Qb6+ {[%clk 0:02:15]}  Kd7 {[%clk 0:01:25]} 41. Qb5+ {[%clk 0:02:15]}  Kd6 {[%clk 0:01:23]} 42. Qb4+ {[%clk 0:02:15]}  Kd7 {[%clk 0:01:21]} 43. Qc3 {[%clk 0:02:15]}  c1=Q {[%clk 0:01:20]} 44. Qxc1 {[%clk 0:02:15]}  Kd6 {[%clk 0:01:12]} 45. Kb5 {[%clk 0:02:16]} 1-0


[Site "https://www.chess.com"]

[Event "Titled Tuesday Blitz May 30 Early 2023"]
[White "Dushyant Sharma"]
[Black "rionelG"]
[WhiteFideId "25065130"]
[WhiteElo "2198"]
[BlackElo "2098"]
[Result "0-1"]
[Round "01"]
[TimeControl "180+2"]
[Date "2023.05.30"]
[WhiteClock "0:00:07"]
[BlackClock "0:00:17"]

1. e4 {[%clk 0:03:00]}  c5 {[%clk 0:02:59]} 2. Nf3 {[%clk 0:02:59]}  d6 {[%clk 0:03:00]} 3. d4 {[%clk 0:02:59]}  cxd4 {[%clk 0:03:01]} 4. Nxd4 {[%clk 0:03:00]}  Nf6 {[%clk 0:03:01]} 5. Nc3 {[%clk 0:03:00]}  a6 {[%clk 0:03:02]} 6. f4 {[%clk 0:02:59]}  Nc6 {[%clk 0:02:57]} 7. Nf3 {[%clk 0:02:59]}  g6 {[%clk 0:02:53]} 8. Bd3 {[%clk 0:03:00]}  Bg7 {[%clk 0:02:52]} 9. O-O {[%clk 0:03:00]}  O-O {[%clk 0:02:52]} 10. a4 {[%clk 0:03:00]}  Nd7 {[%clk 0:02:42]} 11. Kh1 {[%clk 0:02:59]}  b6 {[%clk 0:02:41]} 12. Qe1 {[%clk 0:02:59]}  Bb7 {[%clk 0:02:40]} 13. Bd2 {[%clk 0:02:59]}  Rc8 {[%clk 0:02:35]} 14. Qh4 {[%clk 0:02:59]}  Nd4 {[%clk 0:02:20]} 15. Rae1 {[%clk 0:02:51]}  Nc5 {[%clk 0:02:17]} 16. Ng5 {[%clk 0:02:41]}  h6 {[%clk 0:02:12]} 17. Nf3 {[%clk 0:02:41]}  e5 {[%clk 0:02:00]} 18. Qh3 {[%clk 0:02:35]}  Nxf3 {[%clk 0:01:57]} 19. Rxf3 {[%clk 0:02:33]}  Ne6 {[%clk 0:01:28]} 20. fxe5 {[%clk 0:02:11]}  dxe5 {[%clk 0:01:28]} 21. Bxh6 {[%clk 0:02:12]}  Ng5 {[%clk 0:01:29]} 22. Bxg5 {[%clk 0:02:09]}  Qxg5 {[%clk 0:01:30]} 23. Ref1 {[%clk 0:02:08]}  Rc7 {[%clk 0:01:21]} 24. Qg3 {[%clk 0:01:42]}  Qe7 {[%clk 0:01:20]} 25. h3 {[%clk 0:01:37]}  Qb4 {[%clk 0:01:14]} 26. Nd5 {[%clk 0:01:23]}  Bxd5 {[%clk 0:01:13]} 27. exd5 {[%clk 0:01:24]}  Re7 {[%clk 0:01:04]} 28. Bxa6 {[%clk 0:01:00]}  Qxa4 {[%clk 0:01:03]} 29. Bb7 {[%clk 0:00:38]}  Rxb7 {[%clk 0:00:57]} 30. b3 {[%clk 0:00:32]}  Qd7 {[%clk 0:00:48]} 31. c4 {[%clk 0:00:31]}  Rc7 {[%clk 0:00:48]} 32. Qf2 {[%clk 0:00:29]}  b5 {[%clk 0:00:47]} 33. Rc1 {[%clk 0:00:28]}  Rfc8 {[%clk 0:00:45]} 34. Rfc3 {[%clk 0:00:26]}  bxc4 {[%clk 0:00:44]} 35. bxc4 {[%clk 0:00:27]}  e4 {[%clk 0:00:43]} 36. R3c2 {[%clk 0:00:26]}  f5 {[%clk 0:00:43]} 37. Qg3 {[%clk 0:00:22]}  Kf7 {[%clk 0:00:37]} 38. Qb3 {[%clk 0:00:20]}  Qd6 {[%clk 0:00:32]} 39. Qb5 {[%clk 0:00:15]}  Bd4 {[%clk 0:00:31]} 40. Rd1 {[%clk 0:00:15]}  Bc5 {[%clk 0:00:31]} 41. Qb3 {[%clk 0:00:14]}  Re7 {[%clk 0:00:31]} 42. Re2 {[%clk 0:00:13]}  Rb8 {[%clk 0:00:30]} 43. Qc3 {[%clk 0:00:12]}  Reb7 {[%clk 0:00:28]} 44. Rf1 {[%clk 0:00:12]}  Qf6 {[%clk 0:00:28]} 45. Qxf6+ {[%clk 0:00:12]}  Kxf6 {[%clk 0:00:29]} 46. Rxe4 {[%clk 0:00:13]}  Rb1 {[%clk 0:00:28]} 47. Re6+ {[%clk 0:00:13]}  Kg5 {[%clk 0:00:26]} 48. Rxb1 {[%clk 0:00:13]}  Rxb1+ {[%clk 0:00:26]} 49. Kh2 {[%clk 0:00:14]}  Rc1 {[%clk 0:00:26]} 50. d6 {[%clk 0:00:10]}  Rxc4 {[%clk 0:00:26]} 51. g3 {[%clk 0:00:08]}  Rd4 {[%clk 0:00:25]} 52. h4+ {[%clk 0:00:09]}  Kh6 {[%clk 0:00:25]} 53. d7 {[%clk 0:00:08]}  Rxd7 {[%clk 0:00:25]} 54. Rc6 {[%clk 0:00:09]}  Bd4 {[%clk 0:00:21]} 55. Kh3 {[%clk 0:00:10]}  Be5 {[%clk 0:00:20]} 56. g4 {[%clk 0:00:11]}  Rd3+ {[%clk 0:00:20]} 57. Kg2 {[%clk 0:00:11]}  fxg4 {[%clk 0:00:20]} 58. Rc4 {[%clk 0:00:11]}  Rd2+ {[%clk 0:00:20]} 59. Kg1 {[%clk 0:00:10]}  Kh5 {[%clk 0:00:20]} 60. Rc5 {[%clk 0:00:11]}  Re2 {[%clk 0:00:20]} 61. Kf1 {[%clk 0:00:11]}  Re4 {[%clk 0:00:20]} 62. Kg2 {[%clk 0:00:11]}  Kxh4 {[%clk 0:00:20]} 63. Rc8 {[%clk 0:00:11]}  Kg5 {[%clk 0:00:20]} 64. Rc5 {[%clk 0:00:11]}  Kf4 {[%clk 0:00:20]} 65. Rc2 {[%clk 0:00:10]}  Bd4 {[%clk 0:00:20]} 66. Ra2 {[%clk 0:00:10]}  Re3 {[%clk 0:00:18]} 67. Rb2 {[%clk 0:00:07]}  Bxb2 {[%clk 0:00:17]} 0-1


[Site "https://www.chess.com"]

[Event "Titled Tuesday Blitz May 30 Early 2023"]
[White "Blackwhite017"]
[Black "Martic, Ivan"]
[BlackFideId "929301"]
[WhiteElo "2097"]
[BlackElo "2360"]
[Result "0-1"]
[Round "01"]
[TimeControl "180+2"]
[Date "2023.05.30"]
[WhiteClock "0:00:00"]
[BlackClock "0:01:47"]

1. e4 {[%clk 0:03:00]}  c5 {[%clk 0:02:59]} 2. Nf3 {[%clk 0:02:59]}  e6 {[%clk 0:02:59]} 3. d4 {[%clk 0:02:59]}  cxd4 {[%clk 0:03:00]} 4. Nxd4 {[%clk 0:03:00]}  a6 {[%clk 0:03:01]} 5. Bd3 {[%clk 0:03:00]}  Bc5 {[%clk 0:02:59]} 6. Nb3 {[%clk 0:02:58]}  Be7 {[%clk 0:02:59]} 7. O-O {[%clk 0:02:58]}  d6 {[%clk 0:03:00]} 8. h3 {[%clk 0:02:54]}  Nf6 {[%clk 0:02:59]} 9. c4 {[%clk 0:02:53]}  Qc7 {[%clk 0:02:54]} 10. Nc3 {[%clk 0:02:51]}  Nc6 {[%clk 0:02:52]} 11. Be3 {[%clk 0:02:38]}  Ne5 {[%clk 0:02:51]} 12. Qe2 {[%clk 0:02:30]}  O-O {[%clk 0:02:45]} 13. f4 {[%clk 0:02:16]}  Nxd3 {[%clk 0:02:44]} 14. Qxd3 {[%clk 0:02:17]}  b6 {[%clk 0:02:44]} 15. Rae1 {[%clk 0:02:09]}  Bb7 {[%clk 0:02:42]} 16. Nd2 {[%clk 0:02:03]}  Rfd8 {[%clk 0:02:32]} 17. Qe2 {[%clk 0:01:50]}  Rac8 {[%clk 0:02:30]} 18. Qf2 {[%clk 0:01:47]}  Nd7 {[%clk 0:02:27]} 19. Na4 {[%clk 0:01:02]}  Nc5 {[%clk 0:02:24]} 20. Nxc5 {[%clk 0:00:39]}  bxc5 {[%clk 0:02:22]} 21. f5 {[%clk 0:00:25]}  Bf6 {[%clk 0:02:14]} 22. b3 {[%clk 0:00:21]}  Re8 {[%clk 0:02:11]} 23. Qg3 {[%clk 0:00:14]}  Qe7 {[%clk 0:02:02]} 24. Bf4 {[%clk 0:00:12]}  Rcd8 {[%clk 0:01:52]} 25. Kh2 {[%clk 0:00:12]}  Bh4 {[%clk 0:01:50]} 26. Qg4 {[%clk 0:00:06]}  Bxe1 {[%clk 0:01:49]} 27. Rxe1 {[%clk 0:00:07]}  exf5 {[%clk 0:01:49]} 28. Qxf5 {[%clk 0:00:07]}  Qe6 {[%clk 0:01:46]} 29. Qxe6 {[%clk 0:00:00]}  Rxe6 {[%clk 0:01:47]} 0-1


[Site "https://www.chess.com"]

[Event "Titled Tuesday Blitz May 30 Early 2023"]
[White "Rengifo Blancas, Renzo Jhonathan"]
[Black "Torres Dominguez, David"]
[WhiteFideId "3807185"]
[BlackFideId "2220857"]
[WhiteElo "2085"]
[BlackElo "1999"]
[Result "1-0"]
[Round "01"]
[TimeControl "180+2"]
[Date "2023.05.30"]
[WhiteClock "0:01:46"]
[BlackClock "0:01:02"]

1. e4 {[%clk 0:03:00]}  e5 {[%clk 0:02:49]} 2. Nf3 {[%clk 0:03:00]}  Nc6 {[%clk 0:02:48]} 3. d4 {[%clk 0:03:01]}  exd4 {[%clk 0:02:45]} 4. Bc4 {[%clk 0:03:01]}  Bc5 {[%clk 0:02:44]} 5. Ng5 {[%clk 0:03:01]}  Nh6 {[%clk 0:02:44]} 6. Nxf7 {[%clk 0:03:00]}  Nxf7 {[%clk 0:02:44]} 7. Bxf7+ {[%clk 0:03:01]}  Kxf7 {[%clk 0:02:45]} 8. Qh5+ {[%clk 0:03:02]}  g6 {[%clk 0:02:45]} 9. Qxc5 {[%clk 0:03:03]}  d5 {[%clk 0:02:46]} 10. Qxd5+ {[%clk 0:02:56]}  Qxd5 {[%clk 0:02:45]} 11. exd5 {[%clk 0:02:56]}  Nb4 {[%clk 0:02:43]} 12. Na3 {[%clk 0:02:56]}  Nxd5 {[%clk 0:02:43]} 13. O-O {[%clk 0:02:56]}  Bd7 {[%clk 0:02:40]} 14. Rd1 {[%clk 0:02:54]}  c5 {[%clk 0:02:40]} 15. c3 {[%clk 0:02:54]}  Rhe8 {[%clk 0:02:37]} 16. cxd4 {[%clk 0:02:54]}  cxd4 {[%clk 0:02:38]} 17. Nc4 {[%clk 0:02:47]}  Re6 {[%clk 0:02:31]} 18. Bg5 {[%clk 0:02:43]}  Rae8 {[%clk 0:02:29]} 19. h3 {[%clk 0:02:43]}  Bb5 {[%clk 0:02:24]} 20. Rxd4 {[%clk 0:02:42]}  Re1+ {[%clk 0:02:21]} 21. Rxe1 {[%clk 0:02:31]}  Rxe1+ {[%clk 0:02:22]} 22. Kh2 {[%clk 0:02:31]}  Bxc4 {[%clk 0:02:14]} 23. Rxc4 {[%clk 0:02:32]}  Re2 {[%clk 0:02:12]} 24. Rd4 {[%clk 0:01:44]}  Ke6 {[%clk 0:02:10]} 25. Rd2 {[%clk 0:01:45]}  Rxd2 {[%clk 0:01:59]} 26. Bxd2 {[%clk 0:01:46]}  Nb6 {[%clk 0:01:59]} 27. b3 {[%clk 0:01:45]}  Nd5 {[%clk 0:01:46]} 28. Kg3 {[%clk 0:01:45]}  b5 {[%clk 0:01:43]} 29. Kf3 {[%clk 0:01:45]}  a6 {[%clk 0:01:41]} 30. Ke4 {[%clk 0:01:45]}  Nf6+ {[%clk 0:01:39]} 31. Kd4 {[%clk 0:01:45]}  Nd7 {[%clk 0:01:39]} 32. f4 {[%clk 0:01:44]}  h5 {[%clk 0:01:38]} 33. g4 {[%clk 0:01:44]}  hxg4 {[%clk 0:01:39]} 34. hxg4 {[%clk 0:01:45]}  Kd6 {[%clk 0:01:36]} 35. f5 {[%clk 0:01:44]}  gxf5 {[%clk 0:01:37]} 36. gxf5 {[%clk 0:01:45]}  Kc6 {[%clk 0:01:36]} 37. Bg5 {[%clk 0:01:44]}  Kd6 {[%clk 0:01:35]} 38. Bf4+ {[%clk 0:01:40]}  Kc6 {[%clk 0:01:35]} 39. Be5 {[%clk 0:01:40]}  a5 {[%clk 0:01:33]} 40. f6 {[%clk 0:01:40]}  a4 {[%clk 0:01:32]} 41. b4 {[%clk 0:01:40]}  Kb6 {[%clk 0:01:25]} 42. f7 {[%clk 0:01:40]}  Kc6 {[%clk 0:01:22]} 43. Bg7 {[%clk 0:01:40]}  a3 {[%clk 0:01:17]} 44. f8=Q {[%clk 0:01:39]}  Nxf8 {[%clk 0:01:17]} 45. Bxf8 {[%clk 0:01:40]}  Kb6 {[%clk 0:01:17]} 46. Kc3 {[%clk 0:01:40]}  Ka6 {[%clk 0:01:18]} 47. Kb3 {[%clk 0:01:41]}  Kb6 {[%clk 0:01:19]} 48. Kxa3 {[%clk 0:01:42]}  Ka6 {[%clk 0:01:20]} 49. Kb3 {[%clk 0:01:43]}  Kb6 {[%clk 0:01:20]} 50. Kc3 {[%clk 0:01:44]}  Ka6 {[%clk 0:01:21]} 51. Kd4 {[%clk 0:01:45]}  Kb6 {[%clk 0:01:21]} 52. Kd5 {[%clk 0:01:45]}  Ka6 {[%clk 0:01:02]} 53. Kc5 {[%clk 0:01:46]} 1-0


[Site "https://www.chess.com"]

[Event "Titled Tuesday Blitz May 30 Early 2023"]
[White "Atoufi, Pedram"]
[Black "Horak, Martin"]
[WhiteFideId "12501654"]
[BlackFideId "367095"]
[WhiteElo "2228"]
[BlackElo "2091"]
[Result "1-0"]
[Round "01"]
[TimeControl "180+2"]
[Date "2023.05.30"]
[WhiteClock "0:00:08"]
[BlackClock "0:00:03"]

1. e4 {[%clk 0:02:59]}  f5 {[%clk 0:02:59]} 2. Nc3 {[%clk 0:02:58]}  fxe4 {[%clk 0:02:56]} 3. Qh5+ {[%clk 0:02:51]}  g6 {[%clk 0:02:50]} 4. Qe5 {[%clk 0:02:45]}  Nf6 {[%clk 0:02:48]} 5. Nd5 {[%clk 0:02:36]}  d6 {[%clk 0:01:40]} 6. Nxf6+ {[%clk 0:02:33]}  Kf7 {[%clk 0:01:40]} 7. Qxe4 {[%clk 0:02:29]}  exf6 {[%clk 0:01:36]} 8. Bc4+ {[%clk 0:02:28]}  Kg7 {[%clk 0:01:33]} 9. d4 {[%clk 0:02:09]}  Qe7 {[%clk 0:01:31]} 10. Qe3 {[%clk 0:02:04]}  Bf5 {[%clk 0:01:26]} 11. Ne2 {[%clk 0:01:59]}  Qxe3 {[%clk 0:01:22]} 12. Bxe3 {[%clk 0:01:57]}  Bxc2 {[%clk 0:01:19]} 13. Nf4 {[%clk 0:01:44]}  Bf5 {[%clk 0:01:09]} 14. Be6 {[%clk 0:01:29]}  Nc6 {[%clk 0:00:59]} 15. Bxf5 {[%clk 0:01:27]}  gxf5 {[%clk 0:00:59]} 16. Rc1 {[%clk 0:01:19]}  Rc8 {[%clk 0:00:50]} 17. d5 {[%clk 0:01:15]}  Nd8 {[%clk 0:00:45]} 18. Bxa7 {[%clk 0:01:06]}  Be7 {[%clk 0:00:40]} 19. O-O {[%clk 0:00:52]}  Kf7 {[%clk 0:00:35]} 20. Rfe1 {[%clk 0:00:52]}  c5 {[%clk 0:00:32]} 21. Re3 {[%clk 0:00:47]}  b5 {[%clk 0:00:20]} 22. Bb6 {[%clk 0:00:32]}  Rb8 {[%clk 0:00:18]} 23. Ba5 {[%clk 0:00:30]}  Rb7 {[%clk 0:00:17]} 24. Bd2 {[%clk 0:00:20]}  Rd7 {[%clk 0:00:17]} 25. Rce1 {[%clk 0:00:19]}  Nb7 {[%clk 0:00:16]} 26. Rg3 {[%clk 0:00:18]}  Rg8 {[%clk 0:00:16]} 27. Rh3 {[%clk 0:00:18]}  Rg7 {[%clk 0:00:16]} 28. Ne6 {[%clk 0:00:18]}  Rg8 {[%clk 0:00:11]} 29. Rxh7+ {[%clk 0:00:17]}  Kg6 {[%clk 0:00:09]} 30. Rh6+ {[%clk 0:00:15]}  Kf7 {[%clk 0:00:10]} 31. Re3 {[%clk 0:00:14]}  Nd8 {[%clk 0:00:10]} 32. Rh7+ {[%clk 0:00:14]}  Kg6 {[%clk 0:00:10]} 33. Reh3 {[%clk 0:00:12]}  f4 {[%clk 0:00:05]} 34. Nxf4+ {[%clk 0:00:10]}  Kf5 {[%clk 0:00:05]} 35. Rf3 {[%clk 0:00:09]}  Ke4 {[%clk 0:00:05]} 36. h3 {[%clk 0:00:08]}  Re8 {[%clk 0:00:02]} 37. Re3+ {[%clk 0:00:08]}  Kd4 {[%clk 0:00:03]} 38. Bc3+ {[%clk 0:00:08]}  Kc4 {[%clk 0:00:03]} 39. b3# {[%clk 0:00:08]} 1-0


[Site "https://www.chess.com"]

[Event "Titled Tuesday Blitz May 30 Early 2023"]
[White "Staudenhocker43"]
[Black "Castillo Pena, Patricia Evarista"]
[BlackFideId "6412106"]
[WhiteElo "2527"]
[BlackElo "1919"]
[Result "1-0"]
[Round "01"]
[TimeControl "180+2"]
[Date "2023.05.30"]
[WhiteClock "0:00:21"]
[BlackClock "0:00:00"]

1. d4 {[%clk 0:02:59]}  d5 {[%clk 0:02:58]} 2. c4 {[%clk 0:02:59]}  c6 {[%clk 0:02:56]} 3. Nf3 {[%clk 0:02:58]}  Nf6 {[%clk 0:02:56]} 4. e3 {[%clk 0:02:58]}  e6 {[%clk 0:02:56]} 5. Nbd2 {[%clk 0:02:58]}  Nbd7 {[%clk 0:02:55]} 6. Bd3 {[%clk 0:02:58]}  dxc4 {[%clk 0:02:55]} 7. Nxc4 {[%clk 0:02:57]}  b5 {[%clk 0:02:52]} 8. Nce5 {[%clk 0:02:57]}  Bb7 {[%clk 0:02:49]} 9. O-O {[%clk 0:02:56]}  Bd6 {[%clk 0:02:48]} 10. Nxd7 {[%clk 0:02:52]}  Qxd7 {[%clk 0:02:46]} 11. Qe2 {[%clk 0:02:48]}  O-O {[%clk 0:02:35]} 12. e4 {[%clk 0:02:46]}  Be7 {[%clk 0:02:32]} 13. Be3 {[%clk 0:02:34]}  a6 {[%clk 0:02:31]} 14. Rac1 {[%clk 0:02:32]}  Rac8 {[%clk 0:02:30]} 15. Rfd1 {[%clk 0:02:21]}  Rfd8 {[%clk 0:02:29]} 16. Ne5 {[%clk 0:02:17]}  Qe8 {[%clk 0:02:23]} 17. Qf3 {[%clk 0:02:09]}  Ba8 {[%clk 0:01:32]} 18. h3 {[%clk 0:01:57]}  h6 {[%clk 0:01:12]} 19. a3 {[%clk 0:01:30]}  a5 {[%clk 0:01:07]} 20. Qe2 {[%clk 0:01:21]}  b4 {[%clk 0:00:58]} 21. axb4 {[%clk 0:01:08]}  axb4 {[%clk 0:00:58]} 22. f3 {[%clk 0:00:55]}  Qf8 {[%clk 0:00:55]} 23. Ba6 {[%clk 0:00:50]}  Rc7 {[%clk 0:00:40]} 24. Nd3 {[%clk 0:00:49]}  c5 {[%clk 0:00:38]} 25. Nxc5 {[%clk 0:00:48]}  Bxc5 {[%clk 0:00:37]} 26. dxc5 {[%clk 0:00:47]}  Rxd1+ {[%clk 0:00:37]} 27. Qxd1 {[%clk 0:00:47]}  Rd7 {[%clk 0:00:34]} 28. Qe2 {[%clk 0:00:43]}  Qe7 {[%clk 0:00:28]} 29. Bb5 {[%clk 0:00:38]}  Rc7 {[%clk 0:00:26]} 30. c6 {[%clk 0:00:31]}  Qd6 {[%clk 0:00:23]} 31. Qd2 {[%clk 0:00:23]}  Qxd2 {[%clk 0:00:19]} 32. Bxd2 {[%clk 0:00:24]}  Ne8 {[%clk 0:00:16]} 33. Bxb4 {[%clk 0:00:24]}  Nf6 {[%clk 0:00:09]} 34. Ba5 {[%clk 0:00:23]}  Rc8 {[%clk 0:00:00]} 35. c7 {[%clk 0:00:21]} 1-0


[Site "https://www.chess.com"]

[Event "Titled Tuesday Blitz May 30 Early 2023"]
[White "Agibileg, Uurtsaikh"]
[Black "Nepomniachtchi, Ian"]
[WhiteFideId "4901606"]
[BlackFideId "4168119"]
[WhiteElo "2353"]
[BlackElo "2781"]
[Result "1/2-1/2"]
[Round "02"]
[TimeControl "180+2"]
[Date "2023.05.30"]
[WhiteClock "0:00:12"]
[BlackClock "0:00:04"]

1. d4 {[%clk 0:02:54]}  Nf6 {[%clk 0:02:59]} 2. c4 {[%clk 0:02:54]}  g6 {[%clk 0:03:00]} 3. Nc3 {[%clk 0:02:55]}  Bg7 {[%clk 0:03:00]} 4. e4 {[%clk 0:02:55]}  O-O {[%clk 0:03:00]} 5. Be2 {[%clk 0:02:55]}  d6 {[%clk 0:03:01]} 6. Nf3 {[%clk 0:02:56]}  e5 {[%clk 0:03:01]} 7. O-O {[%clk 0:02:57]}  h6 {[%clk 0:03:01]} 8. d5 {[%clk 0:02:50]}  Nh7 {[%clk 0:02:57]} 9. Nd2 {[%clk 0:02:48]}  f5 {[%clk 0:02:57]} 10. b4 {[%clk 0:02:46]}  a5 {[%clk 0:02:52]} 11. bxa5 {[%clk 0:02:45]}  Rxa5 {[%clk 0:02:44]} 12. Nb3 {[%clk 0:02:44]}  Ra8 {[%clk 0:02:44]} 13. f3 {[%clk 0:02:43]}  Na6 {[%clk 0:02:39]} 14. Be3 {[%clk 0:02:42]}  Qe7 {[%clk 0:02:32]} 15. c5 {[%clk 0:02:32]}  Nxc5 {[%clk 0:02:29]} 16. Nxc5 {[%clk 0:02:33]}  dxc5 {[%clk 0:02:30]} 17. a4 {[%clk 0:02:32]}  Nf6 {[%clk 0:02:06]} 18. Qb3 {[%clk 0:02:29]}  Kh7 {[%clk 0:02:05]} 19. Kh1 {[%clk 0:02:11]}  b6 {[%clk 0:01:59]} 20. a5 {[%clk 0:02:11]}  bxa5 {[%clk 0:01:50]} 21. Qa3 {[%clk 0:02:07]}  Nd7 {[%clk 0:01:50]} 22. Nb5 {[%clk 0:01:59]}  Ba6 {[%clk 0:01:47]} 23. Qxa5 {[%clk 0:01:53]}  fxe4 {[%clk 0:01:23]} 24. fxe4 {[%clk 0:01:33]}  Rxf1+ {[%clk 0:01:24]} 25. Rxf1 {[%clk 0:01:32]}  Nf6 {[%clk 0:01:22]} 26. Re1 {[%clk 0:00:51]}  Nxe4 {[%clk 0:01:18]} 27. Nxc7 {[%clk 0:00:49]}  Qh4 {[%clk 0:01:17]} 28. Bxa6 {[%clk 0:00:31]}  Ra7 {[%clk 0:01:03]} 29. d6 {[%clk 0:00:29]}  Nxd6 {[%clk 0:00:59]} 30. Rf1 {[%clk 0:00:16]}  Nf5 {[%clk 0:00:46]} 31. Bf2 {[%clk 0:00:14]}  Qd8 {[%clk 0:00:46]} 32. Qxc5 {[%clk 0:00:13]}  Rxc7 {[%clk 0:00:45]} 33. Qa5 {[%clk 0:00:13]}  Qe7 {[%clk 0:00:37]} 34. Bd3 {[%clk 0:00:12]}  e4 {[%clk 0:00:37]} 35. Bxe4 {[%clk 0:00:12]}  Qe5 {[%clk 0:00:16]} 36. Qxe5 {[%clk 0:00:11]}  Bxe5 {[%clk 0:00:17]} 37. Bxf5 {[%clk 0:00:12]}  gxf5 {[%clk 0:00:16]} 38. Bg3 {[%clk 0:00:13]}  Bxg3 {[%clk 0:00:17]} 39. hxg3 {[%clk 0:00:14]}  Kg6 {[%clk 0:00:17]} 40. Kh2 {[%clk 0:00:14]}  Kg5 {[%clk 0:00:18]} 41. Kh3 {[%clk 0:00:14]}  Rc3 {[%clk 0:00:18]} 42. Rd1 {[%clk 0:00:14]}  f4 {[%clk 0:00:16]} 43. Rd5+ {[%clk 0:00:14]}  Kg6 {[%clk 0:00:16]} 44. Kg4 {[%clk 0:00:15]}  Rxg3+ {[%clk 0:00:15]} 45. Kxf4 {[%clk 0:00:15]}  Rxg2 {[%clk 0:00:16]} 46. Rd3 {[%clk 0:00:12]}  Ra2 {[%clk 0:00:12]} 47. Kg3 {[%clk 0:00:12]}  Ra5 {[%clk 0:00:12]} 48. Kh3 {[%clk 0:00:12]}  Kg5 {[%clk 0:00:12]} 49. Rg3+ {[%clk 0:00:12]}  Kf4 {[%clk 0:00:12]} 50. Rg4+ {[%clk 0:00:12]}  Kf3 {[%clk 0:00:12]} 51. Rg3+ {[%clk 0:00:11]}  Kf2 {[%clk 0:00:13]} 52. Rg2+ {[%clk 0:00:12]}  Kf1 {[%clk 0:00:13]} 53. Rg6 {[%clk 0:00:12]}  Rh5+ {[%clk 0:00:13]} 54. Kg3 {[%clk 0:00:12]}  Kg1 {[%clk 0:00:11]} 55. Kg4 {[%clk 0:00:11]}  Rh2 {[%clk 0:00:11]} 56. Kf3+ {[%clk 0:00:11]}  Kf1 {[%clk 0:00:10]} 57. Rb6 {[%clk 0:00:10]}  Rh3+ {[%clk 0:00:06]} 58. Kg4 {[%clk 0:00:10]}  Rh2 {[%clk 0:00:05]} 59. Rb5 {[%clk 0:00:11]}  h5+ {[%clk 0:00:03]} 60. Rxh5 {[%clk 0:00:11]}  Rxh5 {[%clk 0:00:04]} 61. Kxh5 {[%clk 0:00:12]} 1/2-1/2


[Site "https://www.chess.com"]